fUST/lending_fUST_20250226
["ID","MTS","AMOUNT","RATE_DAILY","PERIOD"]
[354510097,1740544274489,-500.0,0.00040821,2]
[354510098,1740544274499,-4944.6,0.00040821,2]
[354510099,1740544274512,-500.0,0.00040821,2]
[354510100,1740544274523,-2359.47,0.00040821,2]
[354510101,1740544274532,-780.51,0.00040821,2]
[354510102,1740544274542,-500.0,0.00040821,2]
[354510103,1740544274553,-4514.97,0.00040821,2]
[354510104,1740544274564,-500.0,0.00040821,2]
[354510105,1740544274575,-7379.64,0.00040821,2]
[354510106,1740544274586,-10000.0,0.000409,90]
[354510107,1740544274596,-8197.50387322,0.000409,120]
[354510108,1740544274606,-500.0,0.00040979,64]
[354510109,1740544274616,-150.0,0.00041,5]
[354510110,1740544274627,-13719.11325456,0.00041,120]
[354510111,1740544274637,-160.0,0.00041069,6]
[354510112,1740544274647,-500.0,0.00041095,2]
[354510113,1740544274658,-500.0,0.00041095,2]
[354510114,1740544274668,-151.316785,0.00041095,14]
[354510115,1740544274678,-151.683778,0.00041095,14]
[354510116,1740544274688,-417.09087038,0.00041095,2]
[354510117,1740544274698,-151.0,0.00041095,14]
[354510118,1740544274708,-1000.0,0.00041095,20]
[354510119,1740544274720,-1000.0,0.00041095,20]
[354510120,1740544274730,-1000.0,0.00041095,20]
[354510121,1740544274740,-1000.0,0.00041095,20]
[354510122,1740544274752,-1000.0,0.00041095,20]
[354510123,1740544274763,-1000.0,0.00041095,20]
[354510124,1740544274772,-1000.0,0.00041095,20]
[354510125,1740544274780,-1000.0,0.00041095,20]
[354510126,1740544274787,-1000.0,0.00041095,20]
[354510127,1740544274795,-1000.0,0.00041095,20]
[354510128,1740544274802,-579.06350996,0.00041095,2]
[354510129,1740544274811,-1000.0,0.00041095,20]
[354510130,1740544274819,-151.0,0.00041095,14]
[354510131,1740544274826,-500.0,0.00041095,2]
[354510132,1740544274972,-500.0,0.00041095,2]
[354510133,1740544274983,-609.9,0.00041095,2]
[354510134,1740544274994,-500.0,0.00041095,2]
[354510135,1740544275004,-506.36,0.00041095,2]
[354510136,1740544275014,-500.0,0.00041095,2]
[354510137,1740544275025,-500.0,0.00041095,2]
[354510138,1740544275035,-500.0,0.00041095,2]
[354510139,1740544275047,-500.0,0.00041095,2]
[354510140,1740544275057,-500.0,0.00041095,2]
[354510141,1740544275067,-596.83,0.00041095,2]
[354510142,1740544275076,-500.0,0.00041095,2]
[354510143,1740544275085,-586.25,0.00041095,2]
[354510144,1740544275094,-551.48,0.00041095,2]
[354510145,1740544275104,-968.85,0.00041095,2]
[354510146,1740544275115,-500.0,0.00041095,2]
[354510147,1740544275125,-500.0,0.00041095,2]
[354510148,1740544275136,-500.0,0.00041095,2]
[354510149,1740544275146,-500.0,0.00041095,2]
[354510150,1740544275156,-500.0,0.00041095,2]
[354510151,1740544275166,-500.0,0.00041095,2]
[354510152,1740544275176,-500.0,0.00041095,2]
[354510153,1740544275186,-151.0,0.00041095,14]
[354510154,1740544275196,-500.0,0.00041095,2]
[354510155,1740544275206,-685.27,0.00041095,2]
[354510156,1740544275216,-500.0,0.00041095,120]
[354510157,1740544275225,-500.0,0.00041095,2]
[354510158,1740544275234,-500.0,0.00041095,2]
[354510159,1740544275244,-151.0,0.00041095,14]
[354510160,1740544275254,-500.0,0.00041095,2]
[354510161,1740544275265,-151.0,0.00041095,14]
[354510162,1740544275275,-500.0,0.00041095,2]
[354510163,1740544275286,-469.5603654,0.00041095,2]
[354510164,1740544275295,-500.0,0.00041095,2]
[354510165,1740544275305,-957.55,0.00041095,2]
[354510166,1740544275315,-500.0,0.00041095,2]
[354510167,1740544275324,-500.0,0.00041095,2]
[354510168,1740544275334,-695.71,0.00041095,2]
[354510169,1740544275344,-998.92,0.00041095,2]
[354510170,1740544275354,-151.0,0.00041095,14]
[354510171,1740544275364,-174.27335,0.00041095,14]
[354510172,1740544275374,-955.63,0.00041095,2]
[354510173,1740544275384,-500.0,0.00041095,2]
[354510174,1740544275394,-500.0,0.00041095,2]
[354510175,1740544275404,-1281.14,0.00041095,2]
[354510176,1740544275414,-520.22,0.00041095,2]
[354510177,1740544275424,-741.57,0.00041095,2]
[354510178,1740544275434,-500.0,0.00041095,2]
[354510179,1740544275444,-1170.52,0.00041095,2]
[354510180,1740544275454,-480.25188186,0.00041095,2]
[354510181,1740544275465,-389.49408451,0.00041095,2]
[354510182,1740544275475,-9359.13,0.00041095,2]
[354510183,1740544275486,-500.0,0.00041095,2]
[354510184,1740544275497,-500.0,0.00041095,2]
[354510185,1740544275509,-946.31,0.00041095,2]
[354510186,1740544275520,-500.0,0.00041095,2]
[354510187,1740544275530,-691.55,0.00041095,2]
[354510188,1740544275542,-2445.19,0.00041095,2]
[354510189,1740544275553,-607.41,0.00041095,2]
[354510190,1740544275563,-1967.57,0.00041095,2]
[354510191,1740544275573,-500.0,0.00041095,2]
[354510192,1740544275581,-2973.75,0.00041095,2]
[354510193,1740544275592,-663.57,0.00041095,2]
[354510194,1740544275602,-500.0,0.00041095,2]
[354510195,1740544275612,-500.0,0.00041095,2]
[354510196,1740544275622,-500.0,0.00041095,2]
[354510197,1740544275631,-996.6,0.00041095,2]
[354510198,1740544275641,-72329.29,0.00041095,2]
[354510199,1740544275651,-500.0,0.00041095,2]
[354510200,1740544275661,-902.02,0.00041095,2]
[354510201,1740544275670,-500.0,0.00041095,2]
[354510202,1740544275681,-1396.78,0.00041095,2]
[354510203,1740544275690,-755.39,0.00041095,2]
[354510204,1740544275700,-500.0,0.00041095,2]
[354510205,1740544275709,-702.41,0.00041095,2]
[354510206,1740544275719,-500.0,0.00041095,120]
[354510207,1740544275728,-12378.52,0.00041095,2]
[354510208,1740544275738,-500.0,0.00041095,2]
[354510209,1740544275747,-1038.13,0.00041095,2]
[354510210,1740544275757,-709.18,0.00041095,2]
[354510211,1740544275766,-500.0,0.00041095,2]
[354510212,1740544275776,-500.0,0.00041095,2]
[354510213,1740544275785,-500.0,0.00041095,2]
[354510214,1740544275795,-500.0,0.00041095,2]
[354510215,1740544275804,-500.0,0.00041095,2]
[354510216,1740544275813,-1163.07,0.00041095,2]
[354510217,1740544275822,-1165.42,0.00041095,2]
[354510218,1740544275831,-4776.0,0.00041095,120]
[354510219,1740544275840,-567.85,0.00041095,2]
[354510220,1740544275850,-500.0,0.00041095,2]
[354510221,1740544275859,-500.0,0.00041095,2]
[354510222,1740544275868,-500.0,0.00041095,60]
[354510223,1740544275877,-500.0,0.00041095,60]
[354510224,1740544275887,-500.0,0.00041095,60]
[354510225,1740544275896,-500.0,0.00041095,60]
[354510226,1740544275906,-500.0,0.00041095,60]
[354510227,1740544275915,-500.0,0.00041095,60]
[354510228,1740544275924,-500.0,0.00041095,60]
[354510229,1740544275934,-500.0,0.00041095,60]
[354510230,1740544275943,-500.0,0.00041095,2]
[354510231,1740544275952,-500.0,0.00041095,60]
[354510232,1740544275961,-500.0,0.00041095,60]
[354510233,1740544275970,-500.0,0.00041095,2]
[354510234,1740544275979,-177.2655972,0.00041095,60]
[354510235,1740544275989,-500.0,0.00041095,2]
[354510236,1740544275997,-2388.56,0.00041095,2]
[354510237,1740544276006,-500.0,0.00041095,2]
[354510238,1740544276015,-2071.86,0.00041095,2]
[354510239,1740544276024,-2276.35,0.00041095,2]
[354510240,1740544276034,-500.0,0.00041095,2]
[354510241,1740544276043,-805.84,0.00041095,2]
[354510242,1740544276053,-4991.19,0.00041095,2]
[354510243,1740544276062,-7488.25,0.00041095,2]
[354510244,1740544276072,-680.72,0.00041095,2]
[354510245,1740544276081,-636.55553949,0.00041095,2]
[354510246,1740544276090,-6133.91,0.00041095,2]
[354510247,1740544276100,-500.0,0.00041095,2]
[354510248,1740544276109,-957.39,0.00041095,2]
[354510249,1740544276119,-1005.05,0.00041095,2]
[354510250,1740544276130,-208.9605453,0.00041095,2]
[354510251,1740544276141,-670.81,0.00041095,2]
[354510252,1740544276150,-916.92,0.00041095,2]
[354510253,1740544276159,-1103.64,0.00041095,2]
[354510254,1740544276169,-1211.22,0.00041095,2]
[354510255,1740544276179,-500.0,0.00041095,2]
[354510256,1740544276188,-743.17,0.00041095,2]
[354510257,1740544276198,-2331.34,0.00041095,2]
[354510258,1740544276207,-500.0,0.00041095,2]
[354510259,1740544276216,-1647.12,0.00041095,2]
[354510260,1740544276225,-777.71,0.00041095,2]
[354510261,1740544276235,-1861.53,0.00041095,2]
[354510262,1740544276244,-500.0,0.00041095,2]
[354510263,1740544276254,-4944.6,0.00041095,2]
[354510264,1740544276264,-500.0,0.00041095,2]
[354510265,1740544276274,-2359.47,0.00041095,2]
[354510266,1740544276283,-780.51,0.00041095,2]
[354510267,1740544276292,-500.0,0.00041095,2]
[354510268,1740544276302,-4514.97,0.00041095,2]
[354510269,1740544276312,-500.0,0.00041095,2]
[354510270,1740544276321,-7379.64,0.00041095,2]
[354510271,1740544276331,-500.0,0.00041096,31]
[354510272,1740544276341,-500.0,0.00041096,31]
[354510273,1740544276351,-500.0,0.00041096,31]
[354510274,1740544276360,-500.0,0.00041096,31]
[354510275,1740544276370,-500.0,0.00041096,31]
[354510276,1740544276379,-500.0,0.00041096,31]
[354510277,1740544276389,-500.0,0.00041096,31]
[354510278,1740544276398,-500.0,0.00041096,31]
[354510279,1740544276408,-500.0,0.00041096,31]
[354510280,1740544276417,-500.0,0.00041096,31]
[354510281,1740544276427,-500.0,0.00041096,31]
[354510282,1740544276436,-500.0,0.00041096,31]
[354510283,1740544276446,-500.0,0.00041096,31]
[354510284,1740544276455,-500.0,0.00041096,31]
[354510285,1740544276464,-500.0,0.00041096,31]
[354510286,1740544276473,-500.0,0.00041096,31]
[354510287,1740544276483,-500.0,0.00041096,31]
[354510288,1740544276493,-500.0,0.00041096,31]
[354510289,1740544276507,-500.0,0.00041096,31]
[354510290,1740544276516,-500.0,0.00041096,31]
[354510291,1740544276526,-594.97531457,0.00041096,31]
[354510292,1740544276536,-500.0,0.00041096,31]
[354510293,1740544276547,-500.0,0.00041096,31]
[354510294,1740544276556,-500.0,0.00041096,31]
[354510295,1740544276566,-500.0,0.00041096,31]
[354510296,1740544276575,-500.0,0.00041279,93]
[354510297,1740544276584,-500.0,0.00041369,2]
[354510298,1740544276595,-500.0,0.00041369,2]
[354510299,1740544276604,-153.033443,0.00041369,120]
[354510300,1740544276613,-151.809813,0.00041369,30]
[354510301,1740544276623,-1000.0,0.00041369,20]
[354510302,1740544276632,-532.05133527,0.00041369,2]
[354510303,1740544276641,-453.52731005,0.00041369,2]
[354510304,1740544276650,-609.9,0.00041369,2]
[354510305,1740544276660,-500.0,0.00041369,2]
[354510306,1740544276669,-506.36,0.00041369,2]
[354510307,1740544276678,-500.0,0.00041369,2]
[354510308,1740544276687,-500.0,0.00041369,2]
[354510309,1740544276696,-500.0,0.00041369,2]
[354510310,1740544276706,-500.0,0.00041369,2]
[354510311,1740544276715,-500.0,0.00041369,2]
[354510312,1740544276723,-596.83,0.00041369,2]
[354510313,1740544276733,-500.0,0.00041369,2]
[354510314,1740544276742,-586.25,0.00041369,2]
[354510315,1740544276751,-551.48,0.00041369,2]
[354510316,1740544276760,-968.85,0.00041369,2]
[354510317,1740544276770,-303.37269691,0.00041369,2]
[354510318,1740544276780,-500.0,0.00041369,2]
[354510319,1740544276789,-500.0,0.00041369,2]
[354510320,1740544276799,-500.0,0.00041369,2]
[354510321,1740544276807,-500.0,0.00041369,2]
[354510322,1740544276817,-500.0,0.00041369,2]
[354510323,1740544276826,-500.0,0.00041369,2]
[354510324,1740544276835,-442.59195658,0.00041369,2]
[354510325,1740544276844,-685.27,0.00041369,2]
[354510326,1740544276853,-500.0,0.00041369,2]
[354510327,1740544276863,-158.63509056,0.00041369,2]
[354510328,1740544276871,-436.82212651,0.00041369,2]
[354510329,1740544276880,-485.91839855,0.00041369,2]
[354510330,1740544276890,-500.0,0.00041369,2]
[354510331,1740544276899,-957.55,0.00041369,2]
[354510332,1740544276908,-500.0,0.00041369,2]
[354510333,1740544276917,-500.0,0.00041369,2]
[354510334,1740544276926,-695.71,0.00041369,2]
[354510335,1740544276936,-998.92,0.00041369,2]
[354510336,1740544276945,-955.63,0.00041369,2]
[354510337,1740544276954,-500.0,0.00041369,2]
[354510338,1740544276963,-500.0,0.00041369,2]
[354510339,1740544276972,-1281.14,0.00041369,2]
[354510340,1740544276981,-520.22,0.00041369,2]
[354510341,1740544276990,-741.57,0.00041369,2]
[354510342,1740544277000,-500.0,0.00041369,2]
[354510343,1740544277009,-1170.52,0.00041369,2]
[354510344,1740544277018,-9359.13,0.00041369,2]
[354510345,1740544277028,-256.11109083,0.00041369,2]
[354510346,1740544277037,-500.0,0.00041369,2]
[354510347,1740544277047,-946.31,0.00041369,2]
[354510348,1740544277057,-500.0,0.00041369,2]
[354510349,1740544277067,-691.55,0.00041369,2]
[354510350,1740544277076,-2445.19,0.00041369,2]
[354510351,1740544277085,-607.41,0.00041369,2]
[354510352,1740544277095,-1967.57,0.00041369,2]
[354510353,1740544277104,-500.0,0.00041369,2]
[354510354,1740544277113,-2973.75,0.00041369,2]
[354510355,1740544277122,-663.57,0.00041369,2]
[354510356,1740544277131,-500.0,0.00041369,2]
[354510357,1740544277141,-554.90476823,0.00041369,2]
[354510358,1740544277150,-500.0,0.00041369,2]
[354510359,1740544277159,-996.6,0.00041369,2]
[354510360,1740544277168,-72329.29,0.00041369,2]
[354510361,1740544277177,-477.40715086,0.00041369,2]
[354510362,1740544277186,-902.02,0.00041369,2]
[354510363,1740544277195,-500.0,0.00041369,2]
[354510364,1740544277204,-1396.78,0.00041369,2]
[354510365,1740544277213,-755.39,0.00041369,2]
[354510366,1740544277221,-156.44438311,0.00041369,2]
[354510367,1740544277231,-151.0,0.00041369,120]
[354510368,1740544277240,-702.41,0.00041369,2]
[354510369,1740544277251,-585.32053829,0.00041369,120]
[354510370,1740544277260,-151.0,0.00041369,120]
[354510371,1740544277270,-12378.52,0.00041369,2]
[354510372,1740544277280,-151.0,0.00041369,120]
[354510373,1740544277291,-500.0,0.00041369,2]
[354510374,1740544277300,-1038.13,0.00041369,2]
[354510375,1740544277310,-709.18,0.00041369,2]
[354510376,1740544277319,-500.0,0.00041369,2]
[354510377,1740544277329,-500.0,0.00041369,2]
[354510378,1740544277339,-500.0,0.00041369,2]
[354510379,1740544277349,-151.0,0.00041369,120]
[354510380,1740544277359,-500.0,0.00041369,2]
[354510381,1740544277368,-500.0,0.00041369,2]
[354510382,1740544277378,-1163.07,0.00041369,2]
[354510383,1740544277387,-1165.42,0.00041369,2]
[354510384,1740544277397,-567.85,0.00041369,2]
[354510385,1740544277407,-411.15948735,0.00041369,2]
[354510386,1740544277417,-500.0,0.00041369,2]
[354510387,1740544277426,-500.0,0.00041369,2]
[354510388,1740544277435,-500.0,0.00041369,2]
[354510389,1740544277444,-500.0,0.00041369,2]
[354510390,1740544277454,-2388.56,0.00041369,2]
[354510391,1740544277463,-500.0,0.00041369,2]
[354510392,1740544277474,-2071.86,0.00041369,2]
[354510393,1740544277483,-2276.35,0.00041369,2]
[354510394,1740544277492,-500.0,0.00041369,2]
[354510395,1740544277504,-805.84,0.00041369,2]
[354510396,1740544277518,-4991.19,0.00041369,2]
[354510397,1740544277527,-7488.25,0.00041369,2]
[354510398,1740544277536,-680.72,0.00041369,2]
[354510399,1740544277547,-6133.91,0.00041369,2]
[354510400,1740544277557,-500.0,0.00041369,2]
[354510401,1740544277566,-957.39,0.00041369,2]
[354510402,1740544277575,-1005.05,0.00041369,2]
[354510403,1740544277585,-151.0,0.00041369,120]
[354510404,1740544277595,-151.0,0.00041369,120]
[354510405,1740544277604,-670.81,0.00041369,2]
[354510406,1740544277614,-916.92,0.00041369,2]
[354510407,1740544277625,-1103.64,0.00041369,2]
[354510408,1740544277635,-1211.22,0.00041369,2]
[354510409,1740544277645,-500.0,0.00041369,2]
[354510410,1740544277655,-743.17,0.00041369,2]
[354510411,1740544277664,-2331.34,0.00041369,2]
[354510412,1740544277674,-151.0,0.00041369,30]
[354510413,1740544277683,-500.0,0.00041369,2]
[354510414,1740544277692,-1647.12,0.00041369,2]
[354510415,1740544277702,-151.0,0.00041369,120]
[354510416,1740544277711,-777.71,0.00041369,2]
[354510417,1740544277720,-1861.53,0.00041369,2]
[354510418,1740544277729,-500.0,0.00041369,2]
[354510419,1740544277739,-4944.6,0.00041369,2]
[354510420,1740544277748,-500.0,0.00041369,2]
[354510421,1740544277757,-2359.47,0.00041369,2]
[354510422,1740544277767,-780.51,0.00041369,2]
[354510423,1740544277776,-500.0,0.00041369,2]
[354510424,1740544277787,-4514.97,0.00041369,2]
[354510425,1740544277796,-500.0,0.00041369,2]
[354510426,1740544277805,-7379.64,0.00041369,2]
[354510427,1740544277814,-500.0,0.00041479,82]
[354510428,1740544277823,-154.16537073,0.00041548,10]
[354510429,1740544277833,-500.0,0.00041579,18]
[354510430,1740544277842,-500.0,0.00041643,2]
[354510431,1740544277851,-511.55881408,0.00041643,2]
[354510432,1740544277860,-200.009,0.00041643,30]
[354510433,1740544277869,-1000.0,0.00041643,20]
[354510434,1740544277878,-609.9,0.00041643,2]
[354510435,1740544277888,-500.0,0.00041643,2]
[354510436,1740544277897,-506.36,0.00041643,2]
[354510437,1740544277906,-500.0,0.00041643,2]
[354510438,1740544277915,-500.0,0.00041643,2]
[354510439,1740544277925,-500.0,0.00041643,2]
[354510440,1740544277934,-500.0,0.00041643,2]
[354510441,1740544277943,-500.0,0.00041643,2]
[354510442,1740544277952,-596.83,0.00041643,2]
[354510443,1740544277961,-500.0,0.00041643,2]
[354510444,1740544277970,-586.25,0.00041643,2]
[354510445,1740544277980,-151.0,0.00041643,120]
[354510446,1740544277989,-551.48,0.00041643,2]
[354510447,1740544278000,-968.85,0.00041643,2]
[354510448,1740544278010,-500.0,0.00041643,2]
[354510449,1740544278019,-152.192884,0.00041643,120]
[354510450,1740544278029,-500.0,0.00041643,2]
[354510451,1740544278039,-500.0,0.00041643,2]
[354510452,1740544278048,-500.0,0.00041643,2]
[354510453,1740544278058,-500.0,0.00041643,2]
[354510454,1740544278214,-573.20355255,0.00041643,2]
[354510455,1740544278225,-685.27,0.00041643,2]
[354510456,1740544278235,-500.0,0.00041643,2]
[354510457,1740544278246,-500.0,0.00041643,2]
[354510458,1740544278256,-151.0,0.00041643,120]
[354510459,1740544278266,-957.55,0.00041643,2]
[354510460,1740544278276,-209.14658513,0.00041643,2]
[354510461,1740544278286,-500.0,0.00041643,2]
[354510462,1740544278296,-695.71,0.00041643,2]
[354510463,1740544278306,-998.92,0.00041643,2]
[354510464,1740544278317,-955.63,0.00041643,2]
[354510465,1740544278327,-500.0,0.00041643,2]
[354510466,1740544278337,-166.34351129,0.00041643,2]
[354510467,1740544278346,-1281.14,0.00041643,2]
[354510468,1740544278356,-520.22,0.00041643,2]
[354510469,1740544278366,-741.57,0.00041643,2]
[354510470,1740544278376,-500.0,0.00041643,2]
[354510471,1740544278386,-151.0,0.00041643,120]
[354510472,1740544278395,-290.540756,0.00041643,120]
[354510473,1740544278405,-290.540756,0.00041643,120]
[354510474,1740544278415,-1170.52,0.00041643,2]
[354510475,1740544278425,-9359.13,0.00041643,2]
[354510476,1740544278434,-151.0,0.00041643,120]
[354510477,1740544278445,-151.0,0.00041643,120]
[354510478,1740544278455,-500.0,0.00041643,2]
[354510479,1740544278464,-946.31,0.00041643,2]
[354510480,1740544278474,-164.46181605,0.00041643,2]
[354510481,1740544278484,-691.55,0.00041643,2]
[354510482,1740544278493,-2445.19,0.00041643,2]
[354510483,1740544278510,-607.41,0.00041643,2]
[354510484,1740544278529,-1967.57,0.00041643,2]
[354510485,1740544278543,-500.0,0.00041643,2]
[354510486,1740544278552,-2973.75,0.00041643,2]
[354510487,1740544278562,-663.57,0.00041643,2]
[354510488,1740544278572,-500.0,0.00041643,2]
[354510489,1740544278581,-500.0,0.00041643,2]
[354510490,1740544278591,-996.6,0.00041643,2]
[354510491,1740544278601,-72329.29,0.00041643,2]
[354510492,1740544278611,-902.02,0.00041643,2]
[354510493,1740544278620,-500.0,0.00041643,2]
[354510494,1740544278630,-1396.78,0.00041643,2]
[354510495,1740544278640,-755.39,0.00041643,2]
[354510496,1740544278649,-702.41,0.00041643,2]
[354510497,1740544278659,-12378.52,0.00041643,2]
[354510498,1740544278669,-216.64665081,0.00041643,2]
[354510499,1740544278678,-1038.13,0.00041643,2]
[354510500,1740544278688,-709.18,0.00041643,2]
[354510501,1740544278698,-252.03550273,0.00041643,2]
[354510502,1740544278708,-500.0,0.00041643,2]
[354510503,1740544278718,-500.0,0.00041643,2]
[354510504,1740544278728,-500.0,0.00041643,2]
[354510505,1740544278738,-500.0,0.00041643,2]
[354510506,1740544278748,-1163.07,0.00041643,2]
[354510507,1740544278757,-1165.42,0.00041643,2]
[354510508,1740544278767,-567.85,0.00041643,2]
[354510509,1740544278777,-500.0,0.00041643,2]
[354510510,1740544278786,-187.24558126,0.00041643,2]
[354510511,1740544278796,-500.0,0.00041643,2]
[354510512,1740544278806,-500.0,0.00041643,2]
[354510513,1740544278815,-2388.56,0.00041643,2]
[354510514,1740544278825,-500.0,0.00041643,2]
[354510515,1740544278834,-2071.86,0.00041643,2]
[354510516,1740544278844,-2276.35,0.00041643,2]
[354510517,1740544278854,-500.0,0.00041643,2]
[354510518,1740544278864,-805.84,0.00041643,2]
[354510519,1740544278873,-4991.19,0.00041643,2]
[354510520,1740544278883,-7488.25,0.00041643,2]
[354510521,1740544278893,-680.72,0.00041643,2]
[354510522,1740544278903,-6133.91,0.00041643,2]
[354510523,1740544278913,-500.0,0.00041643,2]
[354510524,1740544278922,-957.39,0.00041643,2]
[354510525,1740544278932,-1005.05,0.00041643,2]
[354510526,1740544278942,-500.0,0.00041643,30]
[354510527,1740544278952,-500.0,0.00041643,30]
[354510528,1740544278962,-150.32,0.00041643,2]
[354510529,1740544278972,-670.81,0.00041643,2]
[354510530,1740544278982,-916.92,0.00041643,2]
[354510531,1740544278991,-1103.64,0.00041643,2]
[354510532,1740544279003,-1211.22,0.00041643,2]
[354510533,1740544279012,-500.0,0.00041643,2]
[354510534,1740544279022,-743.17,0.00041643,2]
[354510535,1740544279033,-2331.34,0.00041643,2]
[354510536,1740544279043,-500.0,0.00041643,2]
[354510537,1740544279053,-1647.12,0.00041643,2]
[354510538,1740544279062,-777.71,0.00041643,2]
[354510539,1740544279072,-1861.53,0.00041643,2]
[354510540,1740544279082,-500.0,0.00041643,2]
[354510541,1740544279091,-4944.6,0.00041643,2]
[354510542,1740544279101,-500.0,0.00041643,2]
[354510543,1740544279110,-2359.47,0.00041643,2]
[354510544,1740544279119,-780.51,0.00041643,2]
[354510545,1740544279128,-500.0,0.00041643,2]
[354510546,1740544279138,-4514.97,0.00041643,2]
[354510547,1740544279148,-500.0,0.00041643,2]
[354510548,1740544279157,-7379.64,0.00041643,2]
[354510549,1740544279167,-721.67,0.00041679,5]
[354510550,1740544279176,-2631.29,0.000417,30]
[354510551,1740544279185,-623.0,0.000417,30]
[354510552,1740544279195,-179.62279214,0.00041763,26]
[354510553,1740544279205,-1994.0,0.0004182,120]
[354510554,1740544279214,-1994.0,0.0004182,120]
[354510555,1740544279223,-1994.0,0.0004182,120]
[354510556,1740544279232,-1994.0,0.0004182,120]
[354510557,1740544279242,-1994.0,0.0004182,120]
[354510558,1740544279252,-1994.0,0.0004182,120]
[354510559,1740544279261,-1994.0,0.0004182,120]
[354510560,1740544279271,-1994.0,0.0004182,120]
[354510561,1740544279280,-1994.0,0.0004182,120]
[354510562,1740544279290,-1994.0,0.0004182,120]
[354510563,1740544279300,-500.0,0.00041917,30]
[354510564,1740544279310,-500.0,0.00041917,30]
[354510565,1740544279319,-500.0,0.00041917,2]
[354510566,1740544279328,-1000.0,0.00041917,20]
[354510567,1740544279337,-151.0,0.00041917,120]
[354510568,1740544279346,-609.9,0.00041917,2]
[354510569,1740544279355,-500.0,0.00041917,2]
[354510570,1740544279364,-506.36,0.00041917,2]
[354510571,1740544279374,-500.0,0.00041917,2]
[354510572,1740544279383,-500.0,0.00041917,2]
[354510573,1740544279393,-500.0,0.00041917,2]
[354510574,1740544279403,-500.0,0.00041917,2]
[354510575,1740544279412,-409.8083741,0.00041917,2]
[354510576,1740544279422,-596.83,0.00041917,2]
[354510577,1740544279432,-500.0,0.00041917,2]
[354510578,1740544279441,-586.25,0.00041917,2]
[354510579,1740544279451,-551.48,0.00041917,2]
[354510580,1740544279460,-968.85,0.00041917,2]
[354510581,1740544279470,-528.62367589,0.00041917,2]
[354510582,1740544279479,-500.0,0.00041917,2]
[354510583,1740544279488,-500.0,0.00041917,2]
[354510584,1740544279498,-500.0,0.00041917,2]
[354510585,1740544279510,-500.0,0.00041917,2]
[354510586,1740544279520,-685.27,0.00041917,2]
[354510587,1740544279529,-500.0,0.00041917,2]
[354510588,1740544279538,-500.0,0.00041917,2]
[354510589,1740544279548,-957.55,0.00041917,2]
[354510590,1740544279558,-500.0,0.00041917,2]
[354510591,1740544279567,-695.71,0.00041917,2]
[354510592,1740544279576,-998.92,0.00041917,2]
[354510593,1740544279586,-955.63,0.00041917,2]
[354510594,1740544279596,-500.0,0.00041917,2]
[354510595,1740544279605,-1281.14,0.00041917,2]
[354510596,1740544279615,-520.22,0.00041917,2]